[Event "FRA-ch Youth U14 2018"]
[Site "Agen"]
[Date "2018.04.19"]
[Round "6"]
[White "Cohen Revivo, Shoham"]
[Black "Bassini, Emile"]
[Result "0-1"]
[ECO "B90"]
[WhiteElo "2180"]
[BlackElo "2021"]
[Annotator "NA"]
[PlyCount "147"]
[EventDate "2018.??.??"]
[EventType "swiss"]
[EventCountry "FRA"]
[SourceTitle "playchess.com"]
[Source "ChessBase"]
[SourceQuality "1"]
[TimeControl "5400+30"]

1. e4 {[%emt 0:01:45]} c5 {[%emt 0:00:04]} 2. Nf3 {[%emt 0:00:11]} d6 {[%emt 0:00:05]} 3. d4 {[%emt 0:00:43]} cxd4 {[%emt 0:00:04]} 4. Nxd4 {[%emt 0:00:06]} Nf6 {[%emt 0:00:04]} 5. Nc3 {[%emt 0:01:41]} a6 {[%emt 0:00:05]} 6. Bc4 {[%emt 0:00:28]} e6 {[%emt 0:00:11]} 7. O-O {[%emt 0:01:52]} b5 {[%emt 0:01:00] B86: Sicilian Scheveningen/Najdorf: 6 Bc4, without early ...b5} 8. Bd3 {[%emt 0:00:46]} (8. Bb3 Be7 9. Qf3 Qb6 10. Be3 Qb7 11. Qg3 Nbd7 12. f3 b4 13. Na4 O-O 14. Rfd1 Rb8 15. Ne2 Ne5 16. a3 a5 17. axb4 axb4 18. Nb6 Qc7 19. Qf2 Nfd7 20. Ra7 Rb7 21. Nxc8 Rxc8 22. Rxb7 Qxb7 {0-1 (29) Ivanchuk,V (2726)-Artemiev,V (2691) Huaian 2017}) 8... Qc7 {[%emt 0:01:20]} 9. a3 {[%emt 0:03:08]} Nbd7 {[%emt 0:00:18]} 10. Re1 {[%emt 0:01:51]} Bb7 {[%emt 0:00:12]} 11. Bg5 {[%emt 0:01:46]} Be7 {[%emt 0:01:12]} 12. Qd2 $146 {[%emt 0:02:27]} ({Predecessor:} 12. Nf3 O-O 13. h3 Rad8 14. Rc1 Rfe8 15. Nb1 {1-0 (33) Mikus,T (1861)-Svonavec,S (1985) Slovakia 2016}) 12... O-O {[%emt 0:00:40]} 13. Rad1 {[%emt 0:06:30]} Rac8 {[%emt 0:06:07]} 14. Kh1 {[%emt 0:03:07]} Qb6 {[%emt 0:02:49]} 15. Be3 {[%emt 0:04:23]} Qc7 {[%emt 0:03:53]} 16. f3 {[%emt 0:08:25]} d5 {[%emt 0:03:24]} 17. exd5 {[%emt 0:08:52]} Nxd5 {[%emt 0:03:04]} 18. Nxd5 {[%emt 0:00:09]} Bxd5 {[%emt 0:00:07]} 19. Bf4 {[%emt 0:04:41]} Bd6 {[%emt 0:03:13]} 20. Bxd6 {[%emt 0:00:08]} Qxd6 {[%emt 0:00:03]} 21. c3 {[%emt 0:00:57]} Nb6 {[%emt 0:02:10]} 22. Qg5 {[%emt 0:07:08]} Nc4 {[%emt 0:06:29]} 23. Re2 {[%emt 0:05:42]} Qb6 {[%emt 0:18:27]} 24. Bxc4 {[%emt 0:09:32]} Bxc4 {[%emt 0:00:33]} 25. Re4 {[%emt 0:00:49]} Rc5 {[%emt 0:01:39]} 26. Qg3 {[%emt 0:02:04]} g6 {[%emt 0:04:02]} 27. h4 {[%emt 0:02:57]} Bd5 {[%emt 0:06:12]} 28. Re3 {[%emt 0:01:21]} Rfc8 {[%emt 0:03:15]} 29. Rde1 {[%emt 0:01:05]} Bb7 {[%emt 0:06:15]} 30. Re5 {[%emt 0:01:52]} Qc7 {[%emt 0:04:31]} 31. Qg5 {[%emt 0:03:12]} Rxe5 {[%emt 0:00:47]} 32. Rxe5 {[%emt 0:00:07]} Qd8 {[%emt 0:01:20]} 33. Qg3 {[%emt 0:05:21]} Qc7 {[%emt 0:00:57]} 34. f4 {[%emt 0:00:50]} Qc4 {[%emt 0:05:22]} 35. h5 {[%emt 0:00:27]} Rd8 {[%emt 0:00:17]} 36. Kh2 {[%emt 0:03:22]} Rd5 {[%emt 0:05:10]} 37. h6 {[%emt 0:00:27]} f6 {[%emt 0:02:39]} 38. Qh4 {[%emt 0:05:34]} Kf7 {[%emt 0:01:05]} 39. Rxd5 {[%emt 0:02:14]} Qxd5 {[%emt 0:00:04]} 40. Qg4 {[%emt 0:00:07]} Qe4 {[%emt 0:03:52]} 41. Qg3 {[%emt 0:00:45]} Bd5 {[%emt 0:03:12]} 42. Nf3 {[%emt 0:00:45]} Qf5 {[%emt 0:00:24]} 43. Nh4 {[%emt 0:00:29]} Qh5 {[%emt 0:00:47]} 44. f5 {[%emt 0:00:38]} e5 {[%emt 0:00:51]} 45. fxg6+ {[%emt 0:00:01]} hxg6 {[%emt 0:00:08]} 46. Qh3 {[%emt 0:00:05]} Be6 {[%emt 0:00:13]} 47. Qe3 {[%emt 0:01:07]} Qxh4+ {[%emt 0:00:04]} 48. Kg1 {[%emt 0:00:03]} Bd7 {[%emt 0:01:34]} 49. Qa7 {[%emt 0:00:14]} Qe1+ {[%emt 0:00:22]} 50. Kh2 {[%emt 0:00:04]} Qd2 {[%emt 0:00:07]} 51. h7 {[%emt 0:00:32]} Kg7 {[%emt 0:00:08]} 52. Qxa6 {[%emt 0:00:50]} Kxh7 {[%emt 0:00:36]} 53. Kg1 {[%emt 0:01:53]} Qc1+ {[%emt 0:00:28]} 54. Kh2 {[%emt 0:00:19]} Qf4+ {[%emt 0:00:03]} 55. Kg1 {[%emt 0:00:07]} e4 {[%emt 0:00:06]} 56. Qb7 {[%emt 0:00:43]} Qf5 {[%emt 0:00:07]} 57. Qa7 {[%emt 0:00:35]} g5 {[%emt 0:00:28]} 58. Qe3 {[%emt 0:01:01]} Kg6 {[%emt 0:00:13]} 59. b3 {[%emt 0:00:19]} Be6 {[%emt 0:00:35]} 60. a4 {[%emt 0:00:13]} bxa4 {[%emt 0:00:09]} 61. bxa4 {[%emt 0:00:01]} Bc4 {[%emt 0:00:08]} 62. Qd4 {[%emt 0:00:15]} Qd5 {[%emt 0:00:34]} 63. Qb6 g4 {[%emt 0:01:23]} 64. Qb8 {[%emt 0:00:49]} Qc5+ {[%emt 0:00:58]} 65. Kh1 {[%emt 0:00:00]} e3 {[%emt 0:00:21]} 66. Qe8+ {[%emt 0:00:12]} Bf7 {[%emt 0:00:19]} 67. Qe4+ {[%emt 0:00:01]} f5 {[%emt 0:00:08]} 68. Qd3 {[%emt 0:00:40]} g3 {[%emt 0:01:05]} 69. a5 {[%emt 0:00:42]} Qd5 {[%emt 0:00:54]} 70. Qa6+ {[%emt 0:00:57]} Kg5 {[%emt 0:00:12]} 71. Qf1 {[%emt 0:00:28]} Qd8 {[%emt 0:00:27]} 72. Qf3 {[%emt 0:00:29]} Qh8+ {[%emt 0:00:06]} 73. Kg1 {[%emt 0:00:05]} Qh2+ {[%emt 0:00:04]} 74. Kf1 {[%emt 0:00:04]} 0-1

[Event "FRA-ch Youth U14 2018"]
[Site "Agen"]
[Date "2018.04.19"]
[Round "6"]
[White "Lary, Damien"]
[Black "Ciccoli, Theo"]
[Result "1/2-1/2"]
[ECO "B71"]
[WhiteElo "2072"]
[BlackElo "2126"]
[Annotator "NA"]
[PlyCount "83"]
[EventDate "2018.??.??"]
[EventType "swiss"]
[EventCountry "FRA"]
[SourceTitle "playchess.com"]
[Source "ChessBase"]
[SourceQuality "1"]
[TimeControl "5400+30"]

1. Nf3 {[%emt 0:00:00]} c5 {[%emt 0:00:37]} 2. e4 {[%emt 0:00:56]} d6 {[%emt 0:00:10]} 3. d4 {[%emt 0:00:05]} cxd4 {[%emt 0:00:09]} 4. Nxd4 {[%emt 0:00:02]} Nf6 {[%emt 0:00:14]} 5. Nc3 {[%emt 0:00:11]} g6 {[%emt 0:00:07]} 6. f4 {[%emt 0:01:42]} Nc6 {[%emt 0:00:39]} 7. Nxc6 {[%emt 0:00:17]} bxc6 {[%emt 0:00:01]} 8. e5 {[%emt 0:00:11]} Nd7 {[%emt 0:02:09]} 9. exd6 {[%emt 0:01:06]} exd6 {[%emt 0:00:12]} 10. Be3 {[%emt 0:01:57]} Be7 {[%emt 0:06:51]} 11. Be2 {[%emt 0:08:27]} O-O {[%emt 0:06:15]} 12. O-O {[%emt 0:00:20]} Nb6 {[%emt 0:04:26]} 13. b3 {[%emt 0:06:05]} Re8 {[%emt 0:06:19]} 14. Qd2 {[%emt 0:02:41]} Bf6 {[%emt 0:06:31]} 15. Bf3 {[%emt 0:02:08]} d5 {[%emt 0:04:19]} 16. Rad1 {[%emt 0:09:40]} Bf5 {[%emt 0:06:34]} 17. Ne2 {[%emt 0:07:34]} Qc7 {[%emt 0:10:38]} 18. Bd4 {[%emt 0:01:39]} Bxd4+ {[%emt 0:07:10]} 19. Nxd4 {[%emt 0:00:16]} Bd7 {[%emt 0:06:04]} 20. f5 {[%emt 0:11:10]} c5 {[%emt 0:03:46]} 21. f6 {[%emt 0:05:04]} Qd6 {[%emt 0:01:46]} 22. Ne2 {[%emt 0:01:03]} Re6 {[%emt 0:10:02]} 23. Nc3 {[%emt 0:09:18]} Bc6 {[%emt 0:05:57]} 24. Nxd5 {[%emt 0:05:34]} Nxd5 {[%emt 0:01:03]} 25. Bxd5 {[%emt 0:00:02]} Bxd5 {[%emt 0:01:05]} 26. Qxd5 {[%emt 0:00:01]} Rd8 {[%emt 0:03:00]} 27. Qf3 {[%emt 0:06:11]} Qf8 {[%emt 0:01:28]} 28. Qc3 {[%emt 0:01:24]} Red6 {[%emt 0:01:01]} 29. Rde1 {[%emt 0:01:01]} Rd2 {[%emt 0:00:54]} 30. Re7 {[%emt 0:00:39]} h5 {[%emt 0:02:25]} 31. Rfe1 {[%emt 0:09:08]} Qh6 {[%emt 0:01:16]} 32. Qxc5 {[%emt 0:02:23]} Qf4 {[%emt 0:01:14]} 33. Re8+ {[%emt 0:01:14]} Kh7 {[%emt 0:00:28]} 34. Rxd8 {[%emt 0:00:24]} Rxd8 {[%emt 0:00:13]} 35. Rf1 {[%emt 0:03:48]} Qe4 {[%emt 0:01:22]} 36. Qxa7 {[%emt 0:00:55]} Rd2 {[%emt 0:00:59]} 37. Qxf7+ {[%emt 0:02:11]} Kh6 {[%emt 0:00:01]} 38. Qf8+ {[%emt 0:00:40]} Kg5 {[%emt 0:00:01]} 39. Qc5+ {[%emt 0:00:35]} Kh6 {[%emt 0:00:16]} 40. Qf8+ {[%emt 0:00:07]} Kg5 {[%emt 0:00:01]} 41. Qc5+ {[%emt 0:00:06]} Kh6 {[%emt 0:00:01]} 42. Qf8+ {[%emt 0:01:46]} 1/2-1/2

[Event "FRA-ch Youth U14 2018"]
[Site "Agen"]
[Date "2018.04.19"]
[Round "6"]
[White "Yuan, Beline"]
[Black "Tomasi, Elise"]
[Result "1/2-1/2"]
[ECO "D53"]
[WhiteElo "2035"]
[BlackElo "1689"]
[Annotator "NA"]
[PlyCount "105"]
[EventDate "2018.??.??"]
[EventType "swiss"]
[EventCountry "FRA"]
[SourceTitle "playchess.com"]
[Source "ChessBase"]
[SourceQuality "1"]
[TimeControl "5400+30"]

1. d4 {[%emt 0:00:00]} d5 {[%emt 0:00:37]} 2. c4 {[%emt 0:00:18]} e6 {[%emt 0:00:19]} 3. Nc3 {[%emt 0:00:29]} Nf6 {[%emt 0:00:47]} 4. Bg5 {[%emt 0:00:42]} Be7 {[%emt 0:01:07]} 5. e3 {[%emt 0:00:47]} O-O {[%emt 0:00:45]} 6. Bd3 {[%emt 0:00:37]} h6 {[%emt 0:00:46]} 7. Bh4 {[%emt 0:00:21]} b6 {[%emt 0:01:14] D53: Queen's Gambit Declined: 4 Bg5 Be7: Early deviations} (7... Nbd7 8. Nf3 c5 9. O-O cxd4 10. exd4 dxc4 11. Bxc4 Nb6 12. Bb3 Bd7 13. Ne5 Bc6 14. Nxc6 bxc6 15. Rc1 Rc8 16. Na4 Nxa4 17. Bxa4 Nd5 18. Bxe7 Nxe7 19. b3 Nf5 20. Rxc6 Rxc6 21. Bxc6 Qxd4 {½-½ (30) Adly,A (2597)-Sargissian,G (2666) Dubai 2017}) 8. cxd5 {[%emt 0:00:29]} Nxd5 {[%emt 0:01:08]} 9. Bg3 {[%emt 0:01:41]} Bb7 {[%emt 0:04:08]} 10. Nf3 {[%emt 0:03:39]} c5 {[%emt 0:05:07]} 11. Rc1 {[%emt 0:02:54]} Nc6 {[%emt 0:04:27]} 12. O-O {[%emt 0:01:13]} Rc8 {[%emt 0:09:56]} 13. Bb1 {[%emt 0:07:53]} cxd4 {[%emt 0:07:17]} 14. exd4 {[%emt 0:02:21]} Nxc3 {[%emt 0:02:36]} 15. Rxc3 $146 {[%emt 0:03:09]} ({Predecessor:} 15. bxc3 Bf6 16. Qd3 g6 17. Qe3 Kg7 18. h4 {½-½ (18) Savola,L (2034)-Paldanius,P (2251) Tampere 2008}) 15... Bf6 {[%emt 0:12:09]} 16. Qd3 {[%emt 0:04:29]} g6 {[%emt 0:01:18]} 17. Rd1 {[%emt 0:00:37]} Qd5 {[%emt 0:08:29]} 18. Qe3 {[%emt 0:25:37]} Nxd4 {[%emt 0:16:25]} 19. Rxd4 {[%emt 0:01:23]} Bxd4 {[%emt 0:01:29]} 20. Qxd4 {[%emt 0:00:09]} Qxd4 {[%emt 0:02:27]} 21. Nxd4 {[%emt 0:00:05]} Rcd8 {[%emt 0:02:09]} 22. Be5 {[%emt 0:05:58]} Rd5 {[%emt 0:10:34]} 23. f4 {[%emt 0:12:05]} f6 {[%emt 0:01:00]} 24. Be4 $15 {[%emt 0:05:30]} Rxd4 {[%emt 0:01:36]} 25. Bxd4 {[%emt 0:00:28]} Bxe4 {[%emt 0:00:09]} 26. Rc7 {[%emt 0:00:22]} Rf7 {[%emt 0:00:21]} 27. Rc8+ {[%emt 0:00:53]} Kg7 {[%emt 0:00:25]} 28. g3 {[%emt 0:00:35]} Rd7 {[%emt 0:01:11]} 29. Bc3 {[%emt 0:00:06]} Bd5 {[%emt 0:00:40]} 30. a3 {[%emt 0:00:05]} Bb7 {[%emt 0:00:37]} 31. Rc4 {[%emt 0:01:50]} Ba6 {[%emt 0:01:35]} 32. Re4 {[%emt 0:02:39]} Kf7 {[%emt 0:00:26]} 33. Kf2 {[%emt 0:00:21]} Bb7 {[%emt 0:00:47]} 34. Rc4 {[%emt 0:00:25]} Ba6 {[%emt 0:00:18]} 35. Ra4 {[%emt 0:02:25]} Bb5 {[%emt 0:00:20]} 36. Re4 {[%emt 0:00:59]} Bc6 {[%emt 0:00:17]} 37. Re3 {[%emt 0:01:32]} Rd1 {[%emt 0:00:57]} 38. Re1 {[%emt 0:05:46]} Rxe1 {[%emt 0:00:36]} 39. Bxe1 {[%emt 0:00:03]} e5 {[%emt 0:00:24]} 40. fxe5 {[%emt 0:00:37]} fxe5 {[%emt 0:00:10]} 41. Bd2 {[%emt 0:01:18]} h5 {[%emt 0:00:07]} 42. Ke3 {[%emt 0:01:51]} Ke6 {[%emt 0:00:04]} 43. Bc3 {[%emt 0:00:13]} Kf5 {[%emt 0:00:59]} 44. h4 {[%emt 0:00:11]} Ke6 {[%emt 0:00:13]} 45. Kd3 {[%emt 0:01:18]} Kd5 {[%emt 0:00:19]} 46. Ke3 {[%emt 0:01:06]} e4 {[%emt 0:00:23]} 47. Kf4 {[%emt 0:00:34]} Bd7 {[%emt 0:00:16]} 48. Ke3 {[%emt 0:00:14]} Bc6 {[%emt 0:00:07]} 49. Kf4 {[%emt 0:00:50]} Bd7 {[%emt 0:00:06]} 50. Ke3 {[%emt 0:00:42]} Bc6 {[%emt 0:00:09]} 51. Kf4 {[%emt 0:03:18]} Bd7 {[%emt 0:00:12]} 52. Ke3 {[%emt 0:00:19]} Bc6 {[%emt 0:00:10]} 53. Kf4 {[%emt 0:00:08] Ke5+ Kxe4+} 1/2-1/2

[Event "FRA-ch Youth U14 2018"]
[Site "Agen"]
[Date "2018.04.19"]
[Round "6"]
[White "Brouard, Gregoire"]
[Black "Bacrot, Alexandre"]
[Result "0-1"]
[ECO "D31"]
[WhiteElo "1955"]
[BlackElo "2180"]
[Annotator "NA"]
[PlyCount "124"]
[EventDate "2018.??.??"]
[EventType "swiss"]
[EventCountry "FRA"]
[SourceTitle "playchess.com"]
[Source "ChessBase"]
[SourceQuality "1"]
[TimeControl "5400+30"]

1. d4 {[%emt 0:00:00]} d5 {[%emt 0:00:11]} 2. c4 {[%emt 0:00:00]} e6 {[%emt 0:00:03]} 3. Nc3 {[%emt 0:00:00]} Be7 {[%emt 0:00:16]} 4. Nf3 {[%emt 0:02:55]} Nf6 {[%emt 0:00:33]} 5. e3 {[%emt 0:02:08]} O-O {[%emt 0:00:54]} 6. h3 {[%emt 0:03:09]} b6 {[%emt 0:01:38]} 7. cxd5 {[%emt 0:04:47]} exd5 {[%emt 0:00:01]} 8. Bd3 {[%emt 0:00:14]} Bb7 {[%emt 0:01:23]} 9. O-O {[%emt 0:02:37]} c5 {[%emt 0:05:12]} 10. Qc2 {[%emt 0:17:11]} Nc6 {[%emt 0:00:34]} 11. a3 {[%emt 0:00:19]} c4 {[%emt 0:01:35]} 12. Be2 {[%emt 0:01:16]} Na5 {[%emt 0:08:14]} 13. Ne5 $15 {[%emt 0:02:28]} a6 {[%emt 0:03:45]} 14. f4 {[%emt 0:02:30]} b5 {[%emt 0:09:10]} 15. Bf3 {[%emt 0:03:23]} Nb3 {[%emt 0:00:00]} 16. Rb1 {[%emt 0:00:09]} Qb6 {[%emt 0:02:12]} 17. g4 {[%emt 0:06:10]} Rad8 {[%emt 0:01:11]} 18. Qg2 {[%emt 0:01:19]} Rfe8 {[%emt 0:09:44]} 19. g5 {[%emt 0:07:37]} Ne4 {[%emt 0:00:03]} 20. Nxe4 {[%emt 0:02:36]} dxe4 {[%emt 0:00:03]} 21. Bxe4 {[%emt 0:02:26]} Bxe4 {[%emt 0:00:35]} 22. Qxe4 {[%emt 0:00:08]} Bd6 {[%emt 0:04:31]} 23. Qf5 {[%emt 0:07:21]} Bxe5 {[%emt 0:02:35]} 24. fxe5 {[%emt 0:00:45]} Re7 {[%emt 0:00:06]} 25. Rf2 {[%emt 0:03:38]} Qe6 {[%emt 0:02:15]} 26. Qxe6 {[%emt 0:02:42]} Rxe6 {[%emt 0:00:10]} 27. Kf1 {[%emt 0:03:58]} h6 {[%emt 0:04:14]} 28. h4 {[%emt 0:00:30]} hxg5 {[%emt 0:06:04]} 29. hxg5 {[%emt 0:00:12]} Rd7 {[%emt 0:02:59]} 30. Ke1 {[%emt 0:05:11]} Rg6 {[%emt 0:04:33]} 31. Rf5 {[%emt 0:01:39]} Rd5 {[%emt 0:01:13]} 32. Ke2 {[%emt 0:02:23]} Rxd4 {[%emt 0:00:55]} 33. exd4 {[%emt 0:01:01]} Nxd4+ {[%emt 0:00:01]} 34. Ke3 {[%emt 0:06:24]} Nxf5+ {[%emt 0:00:01]} 35. Ke4 {[%emt 0:00:19]} Ne7 {[%emt 0:05:03]} 36. Bf4 {[%emt 0:03:08]} Rc6 {[%emt 0:04:45]} 37. Rd1 {[%emt 0:01:00]} Ng6 {[%emt 0:03:41]} 38. Rd8+ {[%emt 0:00:48]} Kh7 {[%emt 0:00:13]} 39. Rd6 {[%emt 0:00:13]} Rc5 {[%emt 0:00:35]} 40. Bh2 {[%emt 0:00:59]} a5 {[%emt 0:01:22]} 41. Kd4 {[%emt 0:00:24]} Rc7 {[%emt 0:02:29]} 42. Rd5 {[%emt 0:03:05]} b4 {[%emt 0:00:45]} 43. axb4 {[%emt 0:00:40]} axb4 {[%emt 0:00:02]} 44. Rb5 {[%emt 0:01:26]} c3 {[%emt 0:00:50]} 45. bxc3 {[%emt 0:00:15]} bxc3 {[%emt 0:00:03]} 46. Rb1 {[%emt 0:00:21]} c2 {[%emt 0:01:30]} 47. Rc1 {[%emt 0:00:05]} Nf8 {[%emt 0:00:04]} 48. Kd3 {[%emt 0:01:30]} Ne6 {[%emt 0:00:41]} 49. Rxc2 {[%emt 0:00:10]} Rxc2 {[%emt 0:00:03]} 50. Kxc2 {[%emt 0:00:07]} Nxg5 {[%emt 0:00:03]} 51. Bf4 {[%emt 0:00:32]} Ne6 {[%emt 0:00:10]} 52. Bg3 {[%emt 0:00:28]} Kg6 {[%emt 0:00:03]} 53. Kd3 {[%emt 0:00:13]} Kf5 {[%emt 0:00:02]} 54. Ke3 {[%emt 0:00:29]} g5 {[%emt 0:02:57]} 55. Bh2 {[%emt 0:00:45]} g4 {[%emt 0:07:19]} 56. Bg3 {[%emt 0:00:38]} Ng5 {[%emt 0:00:06]} 57. Kd4 {[%emt 0:01:05]} Ne4 {[%emt 0:00:33]} 58. Bh2 {[%emt 0:00:21]} g3 {[%emt 0:00:32]} 59. Bg1 {[%emt 0:00:16]} Ng5 {[%emt 0:00:10]} 60. Be3 {[%emt 0:01:05]} Nf3+ {[%emt 0:00:05]} 61. Kd5 {[%emt 0:00:22]} Nxe5 {[%emt 0:00:06]} 62. Kd4 {[%emt 0:00:24]} g2 {[%emt 0:00:16]} 0-1

[Event "FRA-ch Youth U14 2018"]
[Site "Agen"]
[Date "2018.04.19"]
[Round "6"]
[White "Randrianarimanana, Alicia"]
[Black "Sumarriva Paulin, Laura"]
[Result "1-0"]
[ECO "D27"]
[WhiteElo "1872"]
[BlackElo "1665"]
[Annotator "NA"]
[PlyCount "119"]
[EventDate "2018.??.??"]
[EventType "swiss"]
[EventCountry "FRA"]
[SourceTitle "playchess.com"]
[Source "ChessBase"]
[SourceQuality "1"]
[TimeControl "5400+30"]

1. d4 {[%emt 0:00:00]} d5 {[%emt 0:00:05]} 2. c4 {[%emt 0:00:00]} dxc4 {[%emt 0:00:24]} 3. Nf3 {[%emt 0:00:00]} Nf6 {[%emt 0:00:10]} 4. e3 {[%emt 0:00:00]} e6 {[%emt 0:00:06]} 5. Bxc4 {[%emt 0:00:00]} c5 {[%emt 0:00:08]} 6. O-O {[%emt 0:00:00]} a6 {[%emt 0:00:23]} 7. dxc5 {[%emt 0:00:06]} Bxc5 {[%emt 0:03:44]} 8. Qxd8+ {[%emt 0:01:06]} Kxd8 {[%emt 0:00:09]} 9. Ne5 {[%emt 0:00:09]} Ke7 {[%emt 0:00:16]} 10. Be2 {[%emt 0:00:12]} Nbd7 {[%emt 0:02:17]} 11. Nc4 {[%emt 0:01:29]} Nb6 {[%emt 0:06:35]} 12. Nbd2 {[%emt 0:26:02]} Nbd5 {[%emt 0:13:52]} 13. Nb3 {[%emt 0:02:01]} Bd6 {[%emt 0:07:56]} 14. Nxd6 {[%emt 0:00:45]} Kxd6 {[%emt 0:00:21]} 15. Rd1 {[%emt 0:05:35]} Ke7 {[%emt 0:01:56]} 16. Bf3 {[%emt 0:02:04]} Bd7 {[%emt 0:02:56]} 17. Bd2 {[%emt 0:23:40]} Rhc8 {[%emt 0:21:16]} 18. Rac1 {[%emt 0:06:41]} Rxc1 {[%emt 0:06:30]} 19. Rxc1 {[%emt 0:00:02]} Rc8 {[%emt 0:03:39]} 20. Nc5 {[%emt 0:06:58]} Bc6 {[%emt 0:04:23]} 21. Be2 {[%emt 0:02:31]} Nd7 {[%emt 0:10:46]} 22. Nd3 {[%emt 0:01:09]} Kd8 {[%emt 0:01:50]} 23. b3 {[%emt 0:02:16]} b6 {[%emt 0:01:49]} 24. e4 {[%emt 0:02:42]} N5f6 {[%emt 0:01:27]} 25. f3 {[%emt 0:00:04]} a5 {[%emt 0:00:26]} 26. Nb2 {[%emt 0:01:41]} Bb7 {[%emt 0:00:55]} 27. Nc4 {[%emt 0:01:35]} Ba6 {[%emt 0:00:56]} 28. Kf2 {[%emt 0:00:09]} Bxc4 {[%emt 0:00:36]} 29. Bxc4 {[%emt 0:00:09]} Ne5 {[%emt 0:00:44]} 30. Bb5 {[%emt 0:00:47]} Rxc1 {[%emt 0:00:53]} 31. Bxc1 {[%emt 0:00:01]} Ned7 {[%emt 0:01:34]} 32. Ke3 {[%emt 0:00:26]} Kc7 {[%emt 0:00:12]} 33. Ba3 {[%emt 0:00:40]} e5 {[%emt 0:00:50]} 34. Bc4 {[%emt 0:01:15]} Kc6 {[%emt 0:01:50]} 35. Bxf7 {[%emt 0:00:18]} b5 {[%emt 0:00:35]} 36. Be6 {[%emt 0:05:32]} Nc5 {[%emt 0:02:40]} 37. Bh3 {[%emt 0:00:50]} b4 38. Bb2 Kd6 {[%emt 0:02:18]} 39. g3 {[%emt 0:00:48]} a4 {[%emt 0:01:01]} 40. bxa4 {[%emt 0:00:02]} Nxa4 {[%emt 0:00:12]} 41. Ba1 {[%emt 0:00:14]} Nc5 {[%emt 0:00:40]} 42. Bf1 {[%emt 0:00:19]} Nfd7 {[%emt 0:00:56]} 43. Bc4 {[%emt 0:02:32]} Nb6 {[%emt 0:00:15]} 44. Bg8 {[%emt 0:00:17]} h6 {[%emt 0:00:16]} 45. f4 {[%emt 0:02:41]} exf4+ {[%emt 0:00:41]} 46. gxf4 {[%emt 0:00:10]} g5 {[%emt 0:00:36]} 47. e5+ {[%emt 0:01:46]} Ke7 {[%emt 0:00:27]} 48. f5 {[%emt 0:01:24]} Kf8 {[%emt 0:00:57]} 49. Bb3 {[%emt 0:02:15]} Nxb3 {[%emt 0:00:39]} 50. axb3 {[%emt 0:00:00]} h5 {[%emt 0:00:31]} 51. Ke4 {[%emt 0:01:15]} Ke7 {[%emt 0:00:23]} 52. Bd4 {[%emt 0:00:12]} Nd7 {[%emt 0:00:17]} 53. h3 {[%emt 0:00:36]} g4 {[%emt 0:00:36]} 54. hxg4 {[%emt 0:00:03]} hxg4 {[%emt 0:00:04]} 55. Kf4 {[%emt 0:00:08]} g3 {[%emt 0:00:07]} 56. Kxg3 {[%emt 0:00:04]} Ke8 {[%emt 0:00:34]} 57. e6 {[%emt 0:00:33]} Nb8 {[%emt 0:00:08]} 58. f6 {[%emt 0:00:37]} Na6 {[%emt 0:01:23]} 59. f7+ {[%emt 0:00:20]} Kf8 {[%emt 0:00:40]} 60. Be5 {[%emt 0:00:46]} 1-0

[Event "FRA-ch Youth U14 2018"]
[Site "Agen"]
[Date "2018.04.19"]
[Round "6"]
[White "Ginovart, Camille"]
[Black "Chemla, Anouk"]
[Result "0-1"]
[ECO "B40"]
[WhiteElo "1628"]
[BlackElo "1705"]
[Annotator "NA"]
[PlyCount "62"]
[EventDate "2018.??.??"]
[EventType "swiss"]
[EventCountry "FRA"]
[SourceTitle "playchess.com"]
[Source "ChessBase"]
[SourceQuality "1"]
[TimeControl "5400+30"]

1. e4 {[%emt 0:00:00]} c5 {[%emt 0:00:06]} 2. Nf3 {[%emt 0:00:00]} e6 {[%emt 0:00:07]} 3. c3 {[%emt 0:00:00]} Nf6 {[%emt 0:00:15]} 4. e5 {[%emt 0:00:10]} Nd5 {[%emt 0:00:06]} 5. d4 {[%emt 0:00:13]} cxd4 {[%emt 0:00:09]} 6. cxd4 {[%emt 0:00:21]} d6 {[%emt 0:00:20]} 7. Bc4 {[%emt 0:00:23]} Nc6 {[%emt 0:00:32]} 8. O-O {[%emt 0:00:18]} Be7 {[%emt 0:01:43]} 9. Qe2 {[%emt 0:00:47]} O-O {[%emt 0:01:09]} 10. Qe4 {[%emt 0:00:29]} dxe5 {[%emt 0:26:03]} 11. dxe5 {[%emt 0:00:55]} Na5 {[%emt 0:04:39]} 12. Bd3 {[%emt 0:01:20]} g6 {[%emt 0:01:08]} 13. Bh6 {[%emt 0:01:44]} Re8 {[%emt 0:00:48]} 14. h4 {[%emt 0:05:05]} Qb6 {[%emt 0:05:27]} 15. Qe2 {[%emt 0:08:33]} Bd7 {[%emt 0:03:27]} 16. Ng5 {[%emt 0:06:14]} Nc6 {[%emt 0:19:26]} 17. h5 {[%emt 0:25:20]} Nd4 {[%emt 0:06:48]} 18. Qe4 {[%emt 0:03:07]} Nf5 {[%emt 0:01:39]} 19. Nxf7 {[%emt 0:02:07]} Kxf7 {[%emt 0:01:53]} 20. hxg6+ {[%emt 0:00:13]} hxg6 21. g4 {[%emt 0:02:17]} Rg8 {[%emt 0:01:58]} 22. Qf3 {[%emt 0:01:27]} Qd4 {[%emt 0:07:53]} 23. Re1 {[%emt 0:04:34]} Bc5 {[%emt 0:03:05]} 24. Re2 {[%emt 0:04:04]} Ke8 {[%emt 0:01:45]} 25. gxf5 {[%emt 0:00:20]} gxf5+ {[%emt 0:00:33]} 26. Kf1 {[%emt 0:00:13]} Qh4 {[%emt 0:01:29]} 27. Rc2 {[%emt 0:04:45]} Qxh6 {[%emt 0:06:58]} 28. Rxc5 {[%emt 0:00:32]} Bc6 {[%emt 0:00:28]} 29. Bb5 {[%emt 0:04:13]} Bxb5+ {[%emt 0:00:18]} 30. Rxb5 {[%emt 0:00:03]} Qc1+ {[%emt 0:00:16]} 31. Ke2 {[%emt 0:00:34]} Nf4+ {[%emt 0:00:28]} 0-1